fUST/lending_fUST_20250831
["ID","MTS","AMOUNT","RATE_DAILY","PERIOD"]
[382517606,1756655446304,-480.0,0.0001753,2]
[382517607,1756655446313,-688.9,0.0001753,2]
[382517608,1756655446322,-2117.5,0.0001753,2]
[382517609,1756655446331,-1086.75,0.0001753,2]
[382517610,1756655446341,-1417.09,0.0001753,2]
[382517611,1756655446350,-1583.17,0.0001753,2]
[382517612,1756655446359,-1209.45,0.0001753,2]
[382517613,1756655446368,-721.74,0.0001753,2]
[382517614,1756655446377,-690.38,0.0001753,2]
[382517615,1756655446387,-705.87,0.0001753,2]
[382517616,1756655446396,-1091.74,0.0001753,2]
[382517617,1756655446405,-721.57,0.0001753,2]
[382517618,1756655446415,-774.13,0.0001753,2]
[382517619,1756655446424,-480.0,0.0001753,2]
[382517620,1756655446434,-1491.12,0.0001753,2]
[382517621,1756655446443,-600.91,0.0001753,2]
[382517622,1756655446452,-480.0,0.0001753,2]
[382517623,1756655446461,-480.0,0.0001753,2]
[382517624,1756655446470,-480.0,0.0001753,2]
[382517625,1756655446479,-855.97,0.0001753,2]
[382517626,1756655446488,-717.6,0.0001753,2]
[382517627,1756655446498,-480.0,0.00017531,2]
[382517628,1756655446507,-749.52,0.00017531,2]
[382517629,1756655446517,-480.0,0.00017531,2]
[382517630,1756655446527,-1504.44,0.00017531,2]
[382517631,1756655446536,-1210.43,0.00017531,2]
[382517633,1756655446545,-1671.4,0.00017531,2]
[382517634,1756655446555,-480.0,0.00017531,2]
[382517636,1756655446564,-480.0,0.00017531,2]
[382517637,1756655446574,-5842.66,0.00017531,2]
[382517638,1756655446583,-2653.16,0.00017531,2]
[382517640,1756655446594,-1214.24,0.00017531,2]
[382517641,1756655446604,-527.58,0.00017531,2]
[382517643,1756655446613,-1433.16,0.00017531,2]
[382517644,1756655446623,-9402.09,0.00017531,2]
[382517646,1756655446633,-2059.25,0.00017531,2]
[382517647,1756655446643,-7503.49,0.00017531,2]
[382517649,1756655446652,-480.0,0.00017531,2]
[382517650,1756655446661,-3625.25,0.00017531,2]
[382517651,1756655446671,-7794.42,0.00017531,2]
[382517653,1756655446681,-435.60249108,0.00017533,2]
[382517654,1756655446691,-480.0,0.00017533,2]
[382517656,1756655446700,-480.0,0.00017533,2]
[382517657,1756655446710,-480.0,0.00017533,2]
[382517659,1756655446719,-480.0,0.00017533,2]
[382517660,1756655446730,-480.0,0.00017533,2]
[382517661,1756655446740,-480.0,0.00017533,2]
[382517663,1756655446750,-480.0,0.00017533,2]
[382517664,1756655446761,-480.0,0.00017533,2]
[382517666,1756655446771,-480.0,0.00017533,2]
[382517667,1756655446780,-1086.21,0.00017533,2]
[382517669,1756655446790,-480.0,0.00017533,2]
[382517670,1756655446800,-480.0,0.00017533,2]
[382517671,1756655446809,-302.5322839,0.00017533,2]
[382517673,1756655446818,-480.0,0.00017533,2]
[382517674,1756655446828,-480.0,0.00017533,2]
[382517675,1756655446837,-804.8,0.00017533,2]
[382517676,1756655446847,-480.0,0.00017533,2]
[382517677,1756655446856,-480.0,0.00017533,2]
[382517678,1756655446867,-480.0,0.00017533,2]
[382517679,1756655446877,-480.0,0.00017533,2]
[382517680,1756655446889,-480.0,0.00017533,2]
[382517681,1756655446898,-1588.05,0.00017533,2]
[382517682,1756655446907,-513.17890549,0.00017533,2]
[382517683,1756655446916,-480.0,0.00017533,2]
[382517684,1756655446926,-480.0,0.00017533,2]
[382517685,1756655446936,-480.0,0.00017533,2]
[382517686,1756655446945,-598.33,0.00017533,2]
[382517687,1756655446954,-563.05,0.00017533,2]
[382517688,1756655446964,-1083.69,0.00017533,2]
[382517689,1756655446973,-480.0,0.00017533,2]
[382517690,1756655446983,-488.12,0.00017533,2]
[382517691,1756655446993,-480.0,0.00017533,2]
[382517692,1756655447003,-480.0,0.00017533,2]
[382517693,1756655447014,-773.22,0.00017533,2]
[382517694,1756655447023,-480.0,0.00017533,2]
[382517695,1756655447033,-852.82,0.00017533,2]
[382517696,1756655447044,-480.0,0.00017533,2]
[382517697,1756655447054,-1514.99,0.00017533,2]
[382517698,1756655447064,-389.61774307,0.00017533,2]
[382517699,1756655447074,-480.0,0.00017533,2]
[382517700,1756655447084,-480.0,0.00017533,2]
[382517701,1756655447094,-480.0,0.00017533,2]
[382517702,1756655447105,-588.92,0.00017533,2]
[382517703,1756655447115,-480.0,0.00017533,2]
[382517704,1756655447133,-372.78034639,0.00017533,2]
[382517705,1756655447145,-620.92,0.00017533,2]
[382517706,1756655447154,-914.08,0.00017533,2]
[382517707,1756655447163,-480.0,0.00017533,2]
[382517708,1756655447173,-1304.2,0.00017533,2]
[382517709,1756655447182,-678.15,0.00017533,2]
[382517710,1756655447192,-480.0,0.00017533,2]
[382517711,1756655447201,-1835.45,0.00017533,2]
[382517712,1756655447211,-480.0,0.00017533,2]
[382517713,1756655447221,-480.0,0.00017533,2]
[382517714,1756655447230,-514.51,0.00017533,2]
[382517715,1756655447241,-480.0,0.00017533,2]
[382517716,1756655447250,-1086.22,0.00017533,2]
[382517717,1756655447259,-594.48,0.00017533,2]
[382517718,1756655447268,-480.0,0.00017533,2]
[382517720,1756655447277,-480.0,0.00017533,2]
[382517721,1756655447287,-480.0,0.00017533,2]
[382517723,1756655447296,-1262.3,0.00017533,2]
[382517724,1756655447306,-480.0,0.00017533,2]
[382517725,1756655447315,-1294.68,0.00017533,2]
[382517726,1756655447325,-555.2,0.00017533,2]
[382517727,1756655447334,-480.0,0.00017533,2]
[382517728,1756655447343,-480.0,0.00017533,2]
[382517729,1756655447353,-509.65,0.00017533,2]
[382517730,1756655447362,-1655.97,0.00017533,2]
[382517731,1756655447372,-499.35843453,0.00017533,2]
[382517732,1756655447381,-480.0,0.00017533,2]
[382517734,1756655447391,-480.0,0.00017533,2]
[382517735,1756655447400,-627.4,0.00017533,2]
[382517736,1756655447410,-480.0,0.00017533,2]
[382517737,1756655447420,-480.0,0.00017533,2]
[382517738,1756655447430,-1330.53,0.00017533,2]
[382517739,1756655447447,-480.0,0.00017533,2]
[382517740,1756655447456,-480.0,0.00017533,2]
[382517741,1756655447466,-480.0,0.00017533,2]
[382517743,1756655447476,-480.0,0.00017533,2]
[382517745,1756655447486,-655.6,0.00017533,2]
[382517747,1756655447495,-480.0,0.00017533,2]
[382517748,1756655447505,-480.0,0.00017533,2]
[382517749,1756655447515,-596.16,0.00017533,2]
[382517750,1756655447524,-1040.95,0.00017533,2]
[382517751,1756655447534,-480.0,0.00017533,2]
[382517752,1756655447543,-480.0,0.00017533,2]
[382517753,1756655447553,-480.0,0.00017533,2]
[382517754,1756655447563,-1617.26,0.00017533,2]
[382517755,1756655447572,-1525.23,0.00017533,2]
[382517756,1756655447581,-480.0,0.00017533,2]
[382517757,1756655447590,-678.77,0.00017533,2]
[382517758,1756655447600,-480.0,0.00017533,2]
[382517759,1756655447610,-480.0,0.00017533,2]
[382517760,1756655447620,-480.0,0.00017533,2]
[382517761,1756655447630,-522.01,0.00017533,2]
[382517762,1756655447640,-1519.19,0.00017533,2]
[382517763,1756655447650,-729.62,0.00017533,2]
[382517764,1756655447660,-683.79,0.00017533,2]
[382517765,1756655447670,-742.63,0.00017533,2]
[382517766,1756655447679,-480.0,0.00017533,2]
[382517767,1756655447689,-480.0,0.00017533,2]
[382517768,1756655447699,-581.58,0.00017533,2]
[382517769,1756655447708,-480.0,0.00017533,2]
[382517770,1756655447718,-480.0,0.00017533,2]
[382517771,1756655447728,-672.04,0.00017533,2]
[382517772,1756655447737,-480.0,0.00017533,2]
[382517773,1756655447746,-480.0,0.00017533,2]
[382517774,1756655447755,-480.0,0.00017533,2]
[382517775,1756655447765,-867.51,0.00017533,2]
[382517776,1756655447775,-480.0,0.00017533,2]
[382517777,1756655447785,-480.0,0.00017533,2]
[382517778,1756655447794,-1228.6,0.00017533,2]
[382517779,1756655447804,-480.0,0.00017533,2]
[382517780,1756655447814,-1187.48,0.00017533,2]
[382517781,1756655447823,-480.0,0.00017533,2]
[382517782,1756655447832,-480.3,0.00017533,2]
[382517783,1756655447842,-480.0,0.00017533,2]
[382517784,1756655447851,-480.0,0.00017533,2]
[382517785,1756655447861,-1340.66,0.00017533,2]
[382517786,1756655447872,-480.0,0.00017533,2]
[382517787,1756655447883,-480.0,0.00017533,2]
[382517788,1756655447894,-987.3,0.00017533,2]
[382517789,1756655447903,-480.0,0.00017533,2]
[382517790,1756655447913,-480.0,0.00017533,2]
[382517791,1756655447923,-1737.05,0.00017533,2]
[382517792,1756655447932,-480.0,0.00017533,2]
[382517793,1756655447941,-1523.41,0.00017533,2]
[382517794,1756655447951,-812.97,0.00017533,2]
[382517795,1756655447961,-480.0,0.00017533,2]
[382517796,1756655447970,-1305.89,0.00017533,2]
[382517797,1756655447980,-480.0,0.00017533,2]
[382517798,1756655447989,-455.96158309,0.00017533,2]
[382517799,1756655447999,-483.99669531,0.00017533,2]
[382517800,1756655448008,-480.0,0.00017533,2]
[382517801,1756655448018,-690.43,0.00017533,2]
[382517802,1756655448027,-1652.85,0.00017533,2]
[382517803,1756655448037,-3528.75,0.00017533,2]
[382517804,1756655448048,-940.93,0.00017533,2]
[382517805,1756655448058,-480.0,0.00017533,2]
[382517806,1756655448068,-480.0,0.00017533,2]
[382517807,1756655448078,-5613.43,0.00017533,2]
[382517808,1756655448088,-748.33,0.00017533,2]
[382517809,1756655448098,-480.0,0.00017533,2]
[382517810,1756655448107,-575.39,0.00017533,2]
[382517811,1756655448117,-618.55,0.00017533,2]
[382517812,1756655448126,-480.0,0.00017533,2]
[382517813,1756655448136,-151.0,0.00017533,2]
[382517814,1756655448146,-878.55,0.00017533,2]
[382517815,1756655448156,-1043.49,0.00017533,2]
[382517816,1756655448166,-151.0,0.00017533,2]
[382517817,1756655448175,-151.0,0.00017533,2]
[382517818,1756655448185,-151.0,0.00017533,2]
[382517819,1756655448195,-151.0,0.00017533,2]
[382517820,1756655448204,-151.0,0.00017533,2]
[382517821,1756655448214,-151.0,0.00017533,2]
[382517822,1756655448223,-151.0,0.00017533,2]
[382517823,1756655448232,-279.423575,0.00017533,2]
[382517824,1756655448242,-1128.13,0.00017533,2]
[382517825,1756655448252,-819.39,0.00017533,2]
[382517826,1756655448262,-480.0,0.00017533,2]
[382517827,1756655448273,-480.0,0.00017533,2]
[382517828,1756655448283,-697.78,0.00017533,2]
[382517829,1756655448294,-172.580756,0.00017533,2]
[382517830,1756655448304,-172.580756,0.00017533,2]
[382517831,1756655448313,-480.0,0.00017533,2]
[382517832,1756655448323,-172.580756,0.00017533,2]
[382517833,1756655448333,-480.0,0.00017533,2]
[382517834,1756655448343,-852.26,0.00017533,2]
[382517835,1756655448353,-172.580756,0.00017533,2]
[382517836,1756655448362,-492.68,0.00017533,2]
[382517837,1756655448372,-1000.0,0.00017533,2]
[382517838,1756655448382,-480.0,0.00017533,2]
[382517839,1756655448391,-151.0,0.00017533,2]
[382517840,1756655448401,-480.0,0.00017533,2]
[382517841,1756655448411,-151.0,0.00017533,2]
[382517842,1756655448421,-151.0,0.00017533,2]
[382517843,1756655448430,-151.0,0.00017533,2]
[382517844,1756655448439,-151.0,0.00017533,2]
[382517845,1756655448448,-151.0,0.00017533,2]
[382517846,1756655448458,-638.05,0.00017533,2]
[382517847,1756655448468,-287.782845,0.00017533,2]
[382517848,1756655448477,-151.0,0.00017533,2]
[382517849,1756655448487,-151.0,0.00017533,2]
[382517850,1756655448496,-2102.67,0.00017533,2]
[382517851,1756655448506,-151.0,0.00017533,2]
[382517852,1756655448516,-387.152177,0.00017533,2]
[382517853,1756655448526,-151.0,0.00017533,2]
[382517854,1756655448536,-151.0,0.00017533,2]
[382517855,1756655448546,-387.152177,0.00017533,2]
[382517856,1756655448560,-387.152177,0.00017533,2]
[382517857,1756655448570,-387.152177,0.00017533,2]
[382517858,1756655448580,-2459.16,0.00017533,2]
[382517859,1756655448590,-480.0,0.00017537,2]
[382517860,1756655448600,-420.0,0.00017537,2]
[382517861,1756655448609,-480.0,0.00017537,2]
[382517862,1756655448619,-480.0,0.00017537,2]
[382517863,1756655448628,-481.9284001,0.00017537,2]
[382517864,1756655448638,-480.0,0.00017537,2]
[382517865,1756655448648,-480.0,0.00017537,2]
[382517866,1756655448657,-1412.45,0.00017537,2]
[382517867,1756655448669,-789.23,0.00017537,2]
[382517868,1756655448678,-523.79,0.00017537,2]
[382517869,1756655448688,-500.0,0.00017537,2]
[382517870,1756655448698,-1572.47,0.00017537,2]
[382517871,1756655448708,-898.44,0.00017537,2]
[382517872,1756655448718,-480.0,0.00017537,2]
[382517873,1756655448727,-1531.62,0.00017537,2]
[382517874,1756655448736,-1042.08,0.00017537,2]
[382517875,1756655448746,-1490.24,0.00017537,2]
[382517876,1756655448756,-728.76,0.00017537,2]
[382517877,1756655448766,-749.8,0.00017537,2]
[382517878,1756655448775,-151.0,0.00017537,2]
[382517879,1756655448785,-151.943352,0.00017537,2]
[382517880,1756655448795,-185.876676,0.00017537,2]
[382517881,1756655448804,-185.876676,0.00017537,2]
[382517882,1756655448814,-185.876676,0.00017537,2]
[382517883,1756655448824,-258.097144,0.00017537,2]
[382517884,1756655448835,-185.876676,0.00017537,2]
[382517885,1756655448844,-480.0,0.00017537,2]
[382517886,1756655448854,-480.0,0.00017537,2]
[382517887,1756655448864,-480.0,0.00017537,2]
[382517888,1756655448873,-480.0,0.00017537,2]
[382517889,1756655448883,-151.0,0.00017537,2]
[382517890,1756655448893,-151.0,0.00017537,2]
[382517891,1756655448903,-947.0,0.00017537,2]
[382517892,1756655448912,-480.0,0.00017537,2]
[382517893,1756655449071,-480.0,0.00017537,2]
[382517894,1756655449097,-480.0,0.00017537,2]
[382517895,1756655449106,-850.2,0.00017537,2]
[382517896,1756655449117,-1211.01,0.00017537,2]
[382517897,1756655449129,-480.0,0.00017537,2]
[382517898,1756655449139,-493.69,0.00017537,2]
[382517899,1756655449148,-151.0,0.00017537,2]
[382517900,1756655449158,-1117.83,0.00017537,2]
[382517901,1756655449169,-151.0,0.00017537,2]
[382517902,1756655449179,-740.45,0.00017537,2]
[382517904,1756655449189,-480.0,0.00017537,2]
[382517906,1756655449199,-480.0,0.00017537,2]
[382517907,1756655449210,-480.0,0.00017537,2]
[382517908,1756655449220,-151.0,0.00017537,2]
[382517909,1756655449230,-480.0,0.00017537,2]
[382517910,1756655449240,-1136.59,0.00017537,2]
[382517911,1756655449250,-211.109368,0.00017537,2]
[382517912,1756655449260,-211.109368,0.00017537,2]
[382517913,1756655449270,-211.109368,0.00017537,2]
[382517914,1756655449280,-2003.24,0.00017537,2]
[382517915,1756655449290,-211.109368,0.00017537,2]
[382517916,1756655449300,-480.0,0.00017537,2]
[382517918,1756655449310,-151.0,0.00017537,2]
[382517920,1756655449320,-480.0,0.00017537,2]
[382517922,1756655449329,-547.42,0.00017537,2]
[382517924,1756655449339,-345.62403069,0.00017537,2]
[382517926,1756655449349,-529.93,0.00017537,2]
[382517928,1756655449361,-1283.0,0.00017538,2]
[382517930,1756655449371,-480.0,0.0001754,2]
[382517931,1756655449381,-480.0,0.0001754,2]
[382517933,1756655449391,-480.0,0.0001754,2]
[382517935,1756655449401,-480.0,0.0001754,2]
[382517937,1756655449410,-671.5,0.0001754,2]
[382517938,1756655449420,-480.0,0.0001754,2]
[382517939,1756655449429,-596.59,0.0001754,2]
[382517940,1756655449439,-198.85582042,0.0001754,2]
[382517941,1756655449448,-480.0,0.0001754,2]
[382517942,1756655449458,-480.0,0.0001754,2]
[382517943,1756655449468,-480.0,0.0001754,2]
[382517944,1756655449477,-480.0,0.0001754,2]
[382517946,1756655449487,-480.0,0.0001754,2]
[382517948,1756655449496,-604.81,0.0001754,2]
[382517950,1756655449506,-499.04,0.0001754,2]
[382517951,1756655449516,-480.0,0.0001754,2]
[382517952,1756655449526,-644.17,0.0001754,2]
[382517953,1756655449536,-1405.54,0.0001754,2]
[382517954,1756655449546,-1370.05,0.0001754,2]
[382517955,1756655449556,-480.0,0.0001754,2]
[382517956,1756655449566,-480.0,0.0001754,2]
[382517957,1756655449575,-480.0,0.0001754,2]
[382517958,1756655449584,-671.2,0.0001754,2]
[382517959,1756655449594,-480.0,0.0001754,2]
[382517960,1756655449603,-711.19,0.0001754,2]
[382517961,1756655449613,-1375.13,0.0001754,2]
[382517962,1756655449623,-381.87211716,0.0001754,2]
[382517963,1756655449632,-480.0,0.0001754,2]
[382517964,1756655449641,-480.0,0.0001754,2]
[382517965,1756655449651,-480.0,0.0001754,2]
[382517966,1756655449663,-505.59,0.0001754,2]
[382517967,1756655449672,-480.0,0.0001754,2]
[382517968,1756655449681,-480.0,0.0001754,2]
[382517969,1756655449691,-480.0,0.0001754,2]
[382517970,1756655449700,-480.0,0.0001754,2]
[382517971,1756655449710,-480.0,0.0001754,2]
[382517972,1756655449719,-480.0,0.0001754,2]
[382517973,1756655449729,-480.0,0.0001754,2]
[382517974,1756655449739,-513.89,0.0001754,2]
[382517975,1756655449748,-480.0,0.0001754,2]
[382517976,1756655449758,-506.02,0.0001754,2]
[382517977,1756655449767,-596.68,0.0001754,2]
[382517978,1756655449777,-533.44,0.0001754,2]
[382517979,1756655449787,-507.3,0.0001754,2]
[382517980,1756655449797,-480.0,0.0001754,2]
[382517981,1756655449806,-480.0,0.0001754,2]
[382517982,1756655449815,-480.0,0.0001754,2]
[382517983,1756655449825,-480.0,0.0001754,2]
[382517984,1756655449834,-480.0,0.0001754,2]
[382517985,1756655449844,-480.0,0.0001754,2]
[382517986,1756655449853,-265.5352574,0.0001754,2]
[382517987,1756655449863,-766.35,0.0001754,2]
[382517988,1756655449872,-778.78,0.0001754,2]
[382517989,1756655449882,-480.0,0.0001754,2]
[382517990,1756655449891,-480.0,0.0001754,2]
[382517991,1756655449900,-480.0,0.0001754,2]
[382517992,1756655449909,-480.0,0.0001754,2]
[382517993,1756655449919,-480.0,0.0001754,2]
[382517994,1756655449928,-480.0,0.0001754,2]
[382517995,1756655449937,-480.0,0.0001754,2]
[382517996,1756655449947,-480.0,0.0001754,2]
[382517997,1756655449957,-480.0,0.0001754,2]
[382517998,1756655449966,-480.0,0.0001754,2]
[382517999,1756655449975,-993.12,0.0001754,2]
[382518000,1756655449985,-480.0,0.0001754,2]
[382518001,1756655449995,-480.0,0.0001754,2]
[382518002,1756655450005,-480.0,0.0001754,2]
[382518003,1756655450014,-480.0,0.0001754,2]
[382518004,1756655450024,-500.0,0.0001754,2]
[382518005,1756655450033,-480.0,0.0001754,2]
[382518006,1756655450045,-532.73,0.0001754,2]
[382518007,1756655450055,-907.7,0.0001754,2]
[382518008,1756655450064,-480.0,0.0001754,2]
[382518009,1756655450073,-151.0,0.0001754,2]
[382518010,1756655450082,-480.0,0.0001754,2]
[382518011,1756655450091,-480.0,0.0001754,2]
[382518012,1756655450101,-151.0,0.0001754,2]
[382518013,1756655450111,-480.0,0.0001754,2]
[382518014,1756655450121,-665.29,0.0001754,2]
[382518015,1756655450130,-480.0,0.0001754,2]
[382518016,1756655450141,-480.0,0.0001754,2]
[382518017,1756655450151,-151.0,0.0001754,2]
[382518018,1756655450160,-151.0,0.0001754,2]
[382518019,1756655450170,-151.0,0.0001754,2]
[382518020,1756655450179,-480.0,0.0001754,2]
[382518021,1756655450189,-504.95,0.0001754,2]
[382518022,1756655450199,-812.61,0.0001754,2]
[382518023,1756655450209,-156.030943,0.0001754,2]
[382518024,1756655450219,-480.0,0.0001754,2]
[382518025,1756655450228,-480.0,0.0001754,2]
[382518026,1756655450238,-480.0,0.0001754,2]
[382518027,1756655450248,-151.0,0.0001754,2]
[382518028,1756655450257,-516.13,0.0001754,2]
[382518029,1756655450267,-543.00059376,0.0001754,2]
[382518030,1756655450277,-1074.51,0.0001754,2]
[382518031,1756655450286,-534.79,0.0001754,2]
[382518032,1756655450296,-571.85,0.0001754,2]
[382518033,1756655450306,-480.0,0.0001754,2]
[382518034,1756655450316,-480.0,0.0001754,2]
[382518035,1756655450325,-151.0,0.0001754,2]
[382518036,1756655450335,-151.0,0.0001754,2]
[382518037,1756655450344,-151.0,0.0001754,2]
[382518038,1756655450354,-169.664587,0.0001754,2]
[382518039,1756655450365,-480.0,0.0001754,2]
[382518040,1756655450374,-480.0,0.0001754,2]
[382518041,1756655450384,-151.0,0.0001754,2]
[382518042,1756655450394,-151.0,0.0001754,2]
[382518043,1756655450403,-151.0,0.0001754,2]
[382518044,1756655450412,-151.0,0.0001754,2]
[382518045,1756655450422,-480.0,0.0001754,2]
[382518046,1756655450432,-151.0,0.0001754,2]
[382518047,1756655450441,-396.759893,0.0001754,2]
[382518048,1756655450451,-396.759893,0.0001754,2]
[382518049,1756655450460,-396.759893,0.0001754,2]
[382518050,1756655450470,-396.759893,0.0001754,2]
[382518051,1756655450480,-480.0,0.0001754,2]
[382518052,1756655450489,-151.0,0.0001754,2]
[382518053,1756655450498,-151.0,0.0001754,2]
[382518054,1756655450508,-480.64942555,0.0001754,2]
[382518055,1756655450517,-480.0,0.0001754,2]
[382518056,1756655450527,-703.8,0.0001754,2]
[382518057,1756655450536,-600.81,0.0001754,2]
[382518058,1756655450546,-567.37918417,0.0001754,2]
[382518059,1756655450555,-1631.16,0.0001754,2]
[382518060,1756655450564,-480.0,0.0001754,2]
[382518061,1756655450574,-481.39767338,0.0001754,2]
[382518062,1756655450585,-568.98,0.0001754,2]
[382518063,1756655450595,-876.15,0.0001754,2]
[382518064,1756655450604,-879.44,0.00017543,2]
[382518065,1756655450614,-776.53,0.00017543,2]
[382518066,1756655450624,-480.0,0.00017543,2]
[382518067,1756655450635,-502.07,0.00017543,2]
[382518068,1756655450645,-481.23,0.00017543,2]
[382518069,1756655450654,-836.6,0.00017543,2]
[382518070,1756655450664,-1078.51,0.00017543,2]
[382518071,1756655450673,-1254.59,0.00017543,2]
[382518072,1756655450683,-480.0,0.00017543,2]
[382518073,1756655450693,-1255.41,0.00017543,2]
[382518074,1756655450703,-605.87,0.00017543,2]
[382518075,1756655450713,-480.0,0.00017543,2]
[382518076,1756655450723,-480.0,0.00017543,2]
[382518077,1756655450733,-480.0,0.00017543,2]
[382518078,1756655450743,-480.0,0.00017543,2]
[382518079,1756655450753,-480.0,0.00017543,2]
[382518080,1756655450763,-510.0045634,0.00017545,2]
[382518081,1756655450773,-599.32418253,0.00017545,2]
[382518082,1756655450783,-480.0,0.00017548,2]
[382518083,1756655450792,-480.0,0.00017548,2]
[382518084,1756655450802,-480.0,0.00017548,2]
[382518085,1756655450811,-480.0,0.00017548,2]
[382518086,1756655450821,-622.14,0.00017548,2]
[382518087,1756655450830,-599.00710125,0.00017548,2]
[382518088,1756655450840,-480.0,0.00017548,2]
[382518089,1756655450850,-480.0,0.00017548,2]
[382518090,1756655450860,-480.0,0.00017548,2]
[382518091,1756655450869,-699.26,0.00017548,2]
[382518092,1756655450879,-615.46,0.00017548,2]
[382518093,1756655450888,-480.0,0.00017548,2]
[382518094,1756655450898,-550.87,0.00017548,2]
[382518095,1756655450907,-151.0,0.00017548,2]
[382518096,1756655450917,-151.0,0.00017548,2]
[382518097,1756655450926,-151.0,0.00017548,2]
[382518098,1756655450936,-151.0,0.00017548,2]
[382518099,1756655450946,-151.0,0.00017548,2]
[382518100,1756655450955,-151.0,0.00017548,2]
[382518101,1756655450965,-151.0,0.00017548,2]
[382518102,1756655450975,-500.0,0.00017573,2]
[382518103,1756655450985,-158.65713755,0.00017573,2]
[382518104,1756655450994,-500.0,0.00017573,2]
[382518105,1756655451004,-500.39149769,0.00017573,2]
[382518106,1756655451013,-500.0,0.00017573,2]
[382518107,1756655451023,-566.56909995,0.00017573,2]
[382518108,1756655451033,-500.0,0.00017573,2]
[382518109,1756655451044,-386.52954866,0.00017573,2]
[382518110,1756655451057,-500.0,0.00017573,2]
[382518111,1756655451067,-500.0,0.00017573,2]
[382518112,1756655451076,-518.48245204,0.00017573,2]
[382518113,1756655451087,-500.0,0.00017573,2]
[382518114,1756655451097,-500.0,0.00017573,2]
[382518115,1756655451106,-500.0,0.00017573,2]
[382518116,1756655451116,-181.91700237,0.00017573,2]
[382518117,1756655451127,-502.06332901,0.00017573,2]
[382518119,1756655451137,-500.0,0.00017573,2]
[382518121,1756655451147,-417.15472785,0.00017582,2]
[382518122,1756655451157,-217.4012883,0.00017582,2]
[382518124,1756655451167,-425.75173308,0.00017582,2]
[382518126,1756655451176,-160.0,0.00017582,2]
[382518127,1756655451185,-11364.23969824,0.00017582,2]
[382518129,1756655451195,-160.0,0.00017583,2]
[382518130,1756655451204,-845.95363151,0.00017583,2]
[382518132,1756655451214,-232.78794292,0.00017583,2]
[382518133,1756655451224,-160.0,0.00017583,2]
[382518134,1756655451234,-530.02580203,0.00017583,2]
[382518135,1756655451244,-160.0,0.00017583,2]
[382518136,1756655451255,-356.0,0.00017585,2]
[382518137,1756655451264,-160.0,0.00017588,2]
[382518138,1756655451274,-160.0,0.00017588,2]
[382518139,1756655451283,-160.0,0.00017588,2]
[382518140,1756655451292,-160.0,0.00017588,2]
[382518141,1756655451302,-160.0,0.00017588,2]
[382518142,1756655451312,-3000.0,0.00017596,2]
[382518143,1756655451322,-151.0,0.000176,2]
[382518144,1756655451332,-151.0,0.000176,2]
[382518145,1756655451342,-151.0,0.000176,2]